bitfinex/quotes_SOLUSD_20240829
["timestamp","ask_amount","ask_price","bid_price","bid_amount"]
[1724924000188,20.0,145.87,145.79,1.71912111]
[1724924000358,20.0,145.87,145.77,45.0]
[1724924000560,20.0,145.87,145.78,1.71915827]
[1724924000775,20.0,145.87,145.79,1.71915827]
[1724924000976,20.0,145.87,145.77,45.0]
[1724924001178,20.0,145.87,145.78,1.71919594]
[1724924001367,20.0,145.87,145.77,45.0]
[1724924001684,20.0,145.87,145.78,1.71923311]
[1724924001870,20.0,145.87,145.77,45.0]
[1724924002077,45.0,145.86,145.78,1.71926098]
[1724924002294,20.0,145.85,145.76,6.2162]
[1724924002585,20.0,145.85,145.77,1.71927252]
[1724924002765,20.0,145.85,145.76,6.2162]
[1724924002964,20.0,145.85,145.77,1.71928156]
[1724924003181,20.0,145.85,145.76,6.2162]
[1724924003182,15.3145,145.84,145.76,6.2162]
[1724924003486,20.0,145.83,145.77,1.71929439]
[1724924003673,20.0,145.83,145.72,6.4319]
[1724924003991,26.1217,145.83,145.73,4.78263878]
[1724924004162,45.0,145.82,145.73,4.59368794]
[1724924004492,20.0,145.81,145.74,1.71930632]
[1724924004663,20.0,145.81,145.75,1.71930632]
[1724924004989,16.2958,145.8,145.74,2.87438162]
[1724924005289,20.0,145.79,145.72,6.4319]
[1724924005488,20.0,145.79,145.73,1.71964189]
[1724924005692,20.0,145.79,145.69,6.433]
[1724924005989,20.0,145.79,145.7,9.68373111]
[1724924006292,20.0,145.79,145.71,4.59645853]
[1724924006587,20.0,145.79,145.72,1.71973188]
[1724924006790,20.0,145.79,145.69,6.433]
[1724924006975,45.0,145.78,145.7,1.71975514]
[1724924007283,20.0,145.77,145.71,1.71975514]
[1724924007494,20.0,145.77,145.66,6.32738434]
[1724924007665,20.0,145.77,145.67,1.71993471]
[1724924007865,20.0,145.77,145.68,1.71993471]
[1724924008061,20.0,145.77,145.66,6.32738434]
[1724924008062,20.0,145.77,145.69,1.71993471]
[1724924008288,20.0,145.77,145.7,1.71993471]
[1724924008474,66.2958,145.8,145.71,1.71993471]
[1724924008475,20.0,145.79,145.71,1.71993471]
[1724924008668,20.0,145.79,145.66,6.32738434]
[1724924008994,20.0,145.79,145.69,21.9564]
[1724924009175,20.0,145.79,145.7,1.71981213]
[1724924009374,20.0,145.79,145.71,3.09193869]
[1724924009585,20.0,145.79,145.72,1.71981213]
[1724924009781,20.0,145.79,145.7,45.0]
[1724924009993,20.0,145.79,145.71,1.71970071]
[1724924010177,20.0,145.79,145.7,45.0]
[1724924010370,20.0,145.79,145.72,1.71969622]
[1724924010771,20.0,145.79,145.7,45.0]
[1724924010972,20.0,145.79,145.71,1.71969647]
[1724924011185,20.0,145.79,145.72,2.65666841]
[1724924011373,21.4575,145.83,145.72,0.93697194]
[1724924012579,21.4575,145.83,145.73,1.12899233]
[1724924012778,21.4575,145.83,145.74,1.12906321]
[1724924012979,20.0,145.82,145.71,1.37197766]
[1724924014297,20.0,145.82,145.7,45.0]
[1724924014489,20.0,145.82,145.71,1.3710362]
[1724924015181,20.0,145.82,145.72,6.2865]
[1724924015370,22.4996,145.87,145.74,15.6811]
[1724924015790,20.0,145.86,145.75,45.0]
[1724924015971,16.2775,145.87,145.77,6.2865]
[1724924016177,16.2775,145.87,145.78,46.36924595]
[1724924018296,16.2775,145.9,145.78,46.36924595]
[1724924019592,20.0,145.89,145.78,46.36924595]
[1724924022307,20.0,145.89,145.79,15.6209]
[1724924022615,20.0,145.89,145.8,46.36905812]
[1724924024286,20.0,145.89,145.8,45.0]
[1724924025514,20.0,145.89,145.79,15.6209]
[1724924025797,20.0,145.89,145.8,1.37074292]
[1724924026111,20.0,145.89,145.79,15.6209]
[1724924026315,45.0,145.88,145.79,15.6209]
[1724924026516,20.0,145.87,145.79,15.6209]
[1724924029610,20.0,145.89,145.79,15.6209]
[1724924030205,45.0,145.88,145.79,15.6209]
[1724924030509,20.0,145.87,145.79,15.6209]
[1724924031105,20.0,145.87,145.8,1.37156272]
[1724924031307,20.0,145.87,145.8,46.37156272]
[1724924031611,20.0,145.89,145.8,46.37156272]
[1724924035601,20.0,145.89,145.8,45.0]
[1724924036124,20.0,145.89,145.81,1.37143663]
[1724924036324,20.0,145.89,145.8,45.0]
[1724924036514,20.0,145.89,145.8,46.37077818]
[1724924040504,20.0,145.89,145.8,45.0]
[1724924040901,20.0,145.89,145.81,6.3058]
[1724924041426,20.0,145.89,145.81,7.67610588]
[1724924042523,20.0,145.89,145.81,6.3058]
[1724924045426,20.0,145.89,145.81,7.6773394]
[1724924047323,20.0,145.89,145.81,6.3058]
[1724924047532,20.0,145.89,145.81,7.67733632]
[1724924048605,20.0,145.89,145.81,6.3058]
[1724924050331,20.0,145.91,145.81,6.3058]
[1724924050635,45.0,145.9,145.81,6.3058]
[1724924051125,20.0,145.89,145.81,6.3058]
[1724924053405,70.0,145.89,145.81,6.3058]
[1724924053609,45.0,145.88,145.81,6.3058]
[1724924053914,20.0,145.87,145.81,6.3058]
[1724924061515,20.0,145.9,145.81,6.3058]
[1724924063532,95.0,145.89,145.81,6.3058]
[1724924063943,20.0,145.88,145.81,6.3058]
[1724924064240,45.0,145.87,145.81,6.3058]
[1724924064429,20.0,145.86,145.81,6.3058]
[1724924065221,20.0,145.9,145.81,6.3058]
[1724924065517,45.0,145.89,145.81,6.3058]
[1724924065917,20.0,145.88,145.81,6.3058]
[1724924074929,45.0,145.87,145.81,6.3058]
[1724924075328,20.0,145.86,145.81,6.3058]
[1724924076642,20.0,145.9,145.81,6.3058]
[1724924078251,95.0,145.89,145.81,6.3058]
[1724924078421,20.0,145.88,145.81,6.3058]
[1724924080247,45.0,145.87,145.81,6.3058]
[1724924080453,20.0,145.86,145.81,6.3058]
[1724924092254,45.0,145.85,145.81,6.3058]
[1724924092562,20.0,145.84,145.81,6.3058]
[1724924094958,20.0,145.86,145.81,6.3058]
[1724924096439,50.0,145.89,145.81,6.3058]
[1724924096635,45.0,145.88,145.81,6.3058]
[1724924097942,20.0,145.87,145.81,6.3058]
[1724924100760,20.0,145.9,145.81,6.3058]
[1724924101768,50.8572185,145.93,145.83,6.4916]
[1724924102070,0.8572185,145.93,145.83,6.4916]
[1724924102645,0.8572185,145.93,145.85,6.5836]
[1724924105647,0.8572185,145.93,145.88,6.0469]
[1724924105847,0.8572185,145.93,145.88,7.41778707]
[1724924106149,0.8572185,145.93,145.88,6.0469]
[1724924107544,20.8572185,145.93,145.88,6.0469]
[1724924110361,50.0,145.91,145.88,6.0469]
[1724924110559,20.0,145.9,145.88,6.0469]
[1724924111443,20.0,145.92,145.88,6.0469]
[1724924111847,20.8572185,145.93,145.88,6.0469]
[1724924113777,0.8572185,145.93,145.88,6.0469]
[1724924116269,0.8572185,145.93,145.88,7.41779623]
[1724924116657,0.8572185,145.93,145.89,67.2628]
[1724924117054,0.8572185,145.93,145.91,6.0901]
[1724924117276,50.0,146.03,145.93,6.0901]
[1724924118174,50.0,146.01,145.93,6.0901]
[1724924118374,20.0,146.0,145.93,6.0901]
[1724924118676,50.0,146.01,145.93,6.0901]
[1724924119558,45.0,146.0,145.93,6.0901]
[1724924119756,50.0,145.99,145.93,6.0901]
[1724924119961,65.0,145.98,145.93,6.0901]
[1724924123969,50.0,145.97,145.93,6.0901]
[1724924124166,65.0,145.96,145.93,6.0901]
[1724924129292,65.0,145.96,145.89,6.5407]
[1724924130770,50.0,145.95,145.89,6.5407]
[1724924130986,65.0,145.94,145.89,6.5407]
[1724924133491,20.0,145.94,145.89,6.5407]
[1724924133792,20.0,145.96,145.89,6.5407]
[1724924134489,50.0,145.95,145.89,6.5407]
[1724924134680,65.0,145.94,145.89,6.5407]
[1724924135965,20.0,145.94,145.89,6.5407]
[1724924136171,20.0,145.96,145.89,6.5407]
[1724924136475,45.0,145.95,145.89,6.5407]
[1724924136677,20.0,145.94,145.89,6.5407]
[1724924142509,45.0,145.93,145.89,6.5407]
[1724924146111,20.0,145.92,145.89,6.5407]
[1724924148089,45.0,145.91,145.89,6.5407]
[1724924148289,20.0,145.9,145.89,6.5407]
[1724924149409,45.0,145.91,145.89,6.5407]
[1724924149604,17.99148238,146.0,145.89,6.5407]
[1724924149605,45.0,145.92,145.89,6.5407]
[1724924149906,20.0,145.91,145.89,6.5407]
[1724924150287,20.0,145.94,145.89,6.5407]
[1724924154289,7.50104502,145.93,145.89,6.5407]
[1724924154492,65.0,145.92,145.89,6.5407]
[1724924165421,20.0,145.92,145.89,6.5407]
[1724924165621,20.0,145.95,145.89,6.5407]
[1724924165929,45.0,145.94,145.89,6.5407]
[1724924166105,20.0,145.93,145.89,6.5407]
[1724924167707,45.0,145.92,145.89,6.5407]
[1724924167913,20.0,145.91,145.89,6.5407]
[1724924171004,20.0,145.95,145.89,6.5407]
[1724924171333,45.0,145.94,145.89,6.5407]
[1724924171631,20.0,145.93,145.89,6.5407]
[1724924174504,7.50104502,145.96,145.89,6.5407]
[1724924174702,50.0,146.0,145.9,16.74147961]
[1724924174928,50.0,146.0,145.91,6.1769]
[1724924175113,57.50104502,146.02,145.91,7.54748221]
[1724924175307,3.58468864,146.03,145.91,6.1769]
[1724924175308,50.0,146.0,145.91,6.1769]
[1724924176119,57.50104502,146.0,145.91,6.1769]
[1724924176627,20.0,145.99,145.91,6.1769]
[1724924177353,45.0,145.98,145.91,6.1769]
[1724924177921,20.0,145.97,145.91,6.1769]
[1724924178817,45.0,145.96,145.91,6.1769]
[1724924179021,20.0,145.95,145.91,6.1769]
[1724924183147,20.0,145.99,145.91,6.1769]
[1724924184237,45.0,145.98,145.91,6.1769]
[1724924184446,20.0,145.97,145.91,6.1769]
[1724924185947,20.0,145.99,145.91,6.1769]
[1724924187447,20.0,145.99,145.92,15.3483]
[1724924187746,20.0,145.99,145.93,6.2764]
[1724924188045,20.0,146.01,145.93,6.2764]
[1724924188247,20.0,146.03,145.93,6.2764]
[1724924188947,50.0,146.02,145.93,6.2764]
[1724924189251,20.0,146.01,145.93,6.2764]
[1724924189663,20.0,146.01,145.93,7.64684487]
[1724924189832,52.79787933,146.04,145.93,7.64684487]
[1724924190026,50.0,146.04,145.95,6.6462]
[1724924190247,50.0,146.04,145.95,8.01637471]
[1724924191249,20.0,146.03,145.95,8.01637471]
[1724924191654,45.0,146.02,145.95,8.01637471]
[1724924191846,20.0,146.01,145.95,6.6462]
[1724924192030,45.0,146.0,145.95,6.6462]
[1724924192357,20.0,145.99,145.95,6.6462]
[1724924196652,20.0,146.03,145.95,6.6462]
[1724924196962,45.0,146.02,145.95,8.00088963]
[1724924197256,20.0,146.01,145.95,8.00088963]
[1724924197632,20.0,146.01,145.95,6.6462]
[1724924197830,45.0,146.02,145.95,6.6462]
[1724924198031,45.0,146.03,145.95,6.6462]
[1724924198430,45.0,146.03,145.95,8.01524674]
[1724924199358,20.0,146.02,145.95,8.01524674]
[1724924200758,20.0,146.02,145.95,6.6462]
[1724924202957,70.0,146.02,145.95,6.6462]
[1724924203255,45.0,146.01,145.95,6.6462]
[1724924203456,20.0,146.0,145.95,6.6462]
[1724924212271,20.0,146.03,145.95,6.6462]
[1724924212480,45.0,146.02,145.95,8.01638257]
[1724924212848,20.0,146.01,145.95,6.6462]
[1724924213055,45.0,146.0,145.95,6.6462]
[1724924214465,20.0,145.99,145.95,6.6462]
[1724924223266,20.0,146.03,145.95,6.6462]
[1724924224785,45.0,146.02,145.95,6.6462]
[1724924224970,20.0,146.01,145.95,6.6462]
[1724924228781,45.0,146.0,145.95,6.6462]
[1724924228982,20.0,145.99,145.95,6.6462]
[1724924230180,20.0,146.03,145.95,8.01560386]
[1724924230389,45.0,146.02,145.95,8.01560386]
[1724924230561,20.0,146.01,145.95,8.01560386]
[1724924231579,20.0,146.01,145.95,6.6462]
[1724924233470,45.0,146.0,145.95,6.6462]
[1724924234088,20.0,145.99,145.95,6.6462]
[1724924239692,20.0,145.99,145.86,6.5092]
[1724924239927,45.0,145.98,145.87,6.5092]
[1724924240198,20.0,145.97,145.87,6.5092]
[1724924240567,45.0,145.96,145.87,6.5092]
[1724924241289,20.0,145.95,145.87,6.5092]
[1724924243077,45.0,145.94,145.87,6.5092]
[1724924243390,20.0,145.93,145.87,6.5092]
[1724924243791,45.0,145.92,145.87,6.5092]
[1724924243996,20.0,145.91,145.87,6.5092]
[1724924247188,45.0,145.92,145.87,6.5092]
[1724924247396,20.0,145.91,145.87,6.5092]
[1724924250499,45.0,145.92,145.87,6.5092]
[1724924250689,66.2167,145.99,145.87,6.5092]
[1724924251009,50.0,145.97,145.87,6.5092]
[1724924251510,50.0,145.95,145.87,6.5092]
[1724924252307,45.0,145.94,145.87,6.5092]
[1724924252515,65.0,145.94,145.87,6.5092]
[1724924252887,50.0,145.93,145.87,6.5092]
[1724924253107,65.0,145.92,145.87,6.5092]
[1724924256212,50.0,145.91,145.83,22.6524]
[1724924256395,65.0,145.9,145.83,22.6524]
[1724924257210,20.0,145.9,145.83,22.6524]
[1724924257519,20.0,145.92,145.83,22.6524]
[1724924258407,45.0,145.91,145.83,22.6524]
[1724924258597,20.0,145.9,145.83,22.6524]
[1724924269110,20.0,145.9,145.85,6.1292]
[1724924269428,20.0,145.96,145.86,16.9261556]
[1724924269731,66.402,145.99,145.87,6.1292]
[1724924270925,65.0,145.98,145.87,6.1292]
[1724924276299,65.0,145.98,145.88,22.795]
[1724924278613,65.0,145.98,145.89,7.857914]
[1724924278824,65.0,145.98,145.89,6.4871]
[1724924279123,65.0,145.98,145.9,16.61896355]
[1724924279434,65.0,145.98,145.91,6.0333]
[1724924279929,45.0,145.98,145.91,7.40390179]
[1724924280103,50.0,146.01,145.91,7.40390179]
[1724924280610,50.0,146.01,145.91,6.0333]
[1724924280813,7.50104502,146.0,145.91,6.0333]
[1724924281117,50.0,145.98,145.91,6.0333]
[1724924281709,45.0,145.97,145.91,6.0333]
[1724924282446,50.0,146.04,145.93,6.4519]
[1724924282622,50.0,146.06,145.93,6.4519]
[1724924282804,50.0,146.06,145.93,7.82214472]
[1724924283212,16.0396185,146.07,145.93,7.82214472]
[1724924283509,16.0396185,146.07,145.95,6.2145]
[1724924283711,70.0,146.06,145.95,7.58458764]
[1724924284129,70.0,146.06,145.95,6.2145]
[1724924285724,45.0,146.05,145.95,6.2145]
[1724924285912,20.0,146.04,145.95,6.2145]
[1724924286231,45.0,146.03,145.95,6.2145]
[1724924286442,20.0,146.02,145.96,15.578]
[1724924286814,50.0,146.06,145.96,15.578]
[1724924287015,45.0,146.05,145.96,15.578]
[1724924287214,50.0,146.04,145.96,15.578]
[1724924287420,45.0,146.03,145.96,15.578]
[1724924288331,20.0,146.02,145.96,15.578]
[1724924288726,45.0,146.01,145.96,15.578]
[1724924288933,20.0,146.0,145.96,15.578]
[1724924289736,45.0,145.99,145.96,15.578]
[1724924289921,20.0,145.98,145.96,15.578]
[1724924297323,45.0,145.99,145.96,15.578]
[1724924297543,20.0,145.98,145.96,15.578]
[1724924298045,20.0,145.98,145.95,6.2145]
[1724924298218,20.0,145.97,145.95,6.2145]
[1724924298614,45.0,145.96,145.92,16.3615]
[1724924298840,20.0,145.95,145.91,6.6166]
[1724924299026,45.0,145.94,145.91,6.6166]
[1724924299218,20.0,145.93,145.91,6.6166]
[1724924300233,20.0,145.97,145.91,6.6166]
[1724924300417,45.0,145.96,145.91,6.6166]
[1724924300830,20.0,145.95,145.91,6.6166]
[1724924301035,45.0,145.94,145.91,6.6166]
[1724924301239,20.0,145.93,145.91,6.6166]
[1724924302233,45.0,145.92,145.88,16.0131]
[1724924302422,20.0,145.91,145.88,16.0131]
[1724924305941,20.0,145.95,145.88,16.0131]
[1724924306130,45.0,145.94,145.88,16.0131]
[1724924306441,20.0,145.93,145.88,16.0131]
[1724924309640,20.0,145.93,145.87,6.0877]
[1724924309863,45.0,145.92,145.87,6.0877]
[1724924310042,20.0,145.91,145.87,6.0877]
[1724924310547,45.0,145.9,145.87,6.0877]
[1724924312446,20.0,145.89,145.87,6.0877]
[1724924312842,20.0,145.92,145.87,6.0877]
[1724924313033,45.0,145.91,145.87,6.0877]
[1724924313437,20.0,145.9,145.87,6.0877]
[1724924323765,20.0,145.9,145.84,22.8858]
[1724924324548,45.0,145.89,145.84,22.8858]
[1724924325055,20.0,145.88,145.84,22.8858]
[1724924325435,20.0,145.91,145.84,22.8858]
[1724924325751,45.0,145.9,145.84,22.8858]
[1724924325964,20.0,145.89,145.84,22.8858]
[1724924337253,15.9239,145.93,145.84,22.8858]
[1724924337448,45.0,145.92,145.85,1.37114698]
[1724924337649,45.0,145.93,145.84,22.8858]
[1724924338963,20.0,145.92,145.84,22.8858]
[1724924344659,20.0,145.92,145.85,1.37109585]
[1724924350487,20.0,145.92,145.88,6.3834]
[1724924350777,50.0,146.0,145.89,1.37071002]
[1724924351267,50.0,145.98,145.88,7.75411017]
[1724924351445,50.0,145.98,145.88,6.3834]
[1724924352366,45.0,145.97,145.88,6.3834]
[1724924352872,20.0,145.96,145.88,6.3834]
[1724924353074,45.0,145.95,145.88,6.3834]
[1724924353377,20.0,145.94,145.88,6.3834]
[1724924353755,20.0,145.94,145.88,7.75425338]
[1724924354053,20.0,145.97,145.88,7.75425338]
[1724924354261,45.0,145.96,145.88,7.75425338]
[1724924354447,20.0,145.95,145.88,7.75425338]
[1724924354868,20.0,145.95,145.88,6.3834]
[1724924355050,20.0,145.95,145.88,7.75415518]
[1724924356570,20.0,145.99,145.88,7.75415518]
[1724924356780,20.0,145.99,145.88,6.3834]
[1724924356781,45.0,145.98,145.88,6.3834]
[1724924357073,20.0,145.97,145.89,1.3706673]
[1724924359354,20.0,145.97,145.88,6.3834]
[1724924362254,20.0,145.97,145.89,1.36944954]
[1724924362970,20.0,145.97,145.88,6.3834]
[1724924363779,20.0,145.97,145.89,1.36942621]
[1724924364366,20.0,145.97,145.88,6.3834]
[1724924364759,20.0,145.97,145.89,1.36820593]
[1724924365886,20.0,145.97,145.9,22.4488]
[1724924369589,50.0,146.04,145.93,6.3316]
[1724924369771,50.0,146.04,145.93,7.70144754]
[1724924370288,50.0,146.04,145.94,15.2877]
[1724924370585,50.0,146.04,145.94,21.6193]
[1724924371095,20.0,146.03,145.94,21.6193]
[1724924371470,45.0,146.02,145.94,21.6193]
[1724924371670,20.0,146.01,145.94,21.6193]
[1724924375676,20.0,146.01,145.95,7.9365945]
[1724924375863,20.0,146.05,145.97,6.1285]
[1724924376867,20.8572185,146.07,145.97,6.1285]
[1724924377082,50.0,146.06,145.97,6.1285]
[1724924377368,65.0,146.05,145.97,6.1285]
[1724924383103,65.0,146.05,145.98,16.01]
[1724924393401,65.0,146.05,145.99,6.3144]
[1724924400091,20.0,146.05,146.0,16.3386]
[1724924400413,20.0,146.04,146.0,16.3386]
[1724924400709,20.8572185,146.07,146.0,16.3386]
[1724924400900,45.0,146.06,146.0,16.3386]
[1724924401112,20.0,146.05,146.0,16.3386]
[1724924403110,20.0,146.05,146.01,6.3172]
[1724924403317,20.8572185,146.07,146.01,6.3172]
[1724924403798,45.0,146.06,146.01,6.3172]
[1724924403999,20.0,146.05,146.01,6.3172]
[1724924404199,45.0,146.06,146.01,6.3172]
[1724924404400,20.0,146.05,146.01,6.3172]
[1724924405115,20.0,146.06,146.01,6.3172]
[1724924405992,70.0,146.06,146.01,6.3172]
[1724924406196,45.0,146.05,146.01,6.3172]
[1724924406413,20.0,146.04,146.01,6.3172]
[1724924410120,45.0,146.03,146.01,6.3172]
[1724924410296,20.0,146.02,146.01,6.3172]
[1724924410497,65.0,146.02,146.01,6.3172]
[1724924410690,65.0,146.02,145.89,2.86802033]
[1724924411006,65.0,146.02,145.97,6.3735]
[1724924414210,20.0,146.02,145.97,6.3735]
[1724924414397,20.0,146.04,145.97,6.3735]
[1724924415299,95.0,146.03,145.97,6.3735]
[1724924415818,20.0,146.02,145.97,6.3735]
[1724924416512,20.0,146.06,145.97,6.3735]
[1724924417229,45.0,146.05,145.97,6.3735]
[1724924417528,20.0,146.04,145.97,6.3735]
[1724924419414,0.8572185,146.07,145.99,6.5323]
[1724924419721,0.8572185,146.07,146.02,6.5323]
[1724924420406,0.8572185,146.07,146.02,7.90190718]
[1724924421414,0.8572185,146.07,146.02,7.90049907]
[1724924421625,0.8572185,146.07,146.02,6.5323]
[1724924423122,0.8572185,146.07,146.03,16.1085]
[1724924423295,0.8572185,146.07,146.04,6.0562]
[1724924424325,0.8572185,146.07,146.04,6.99010212]
[1724924424508,0.8572185,146.07,146.05,1.3692768]
[1724924425214,0.8572185,146.07,146.04,6.0562]
[1724924425416,0.8572185,146.07,146.05,1.36908384]
[1724924425829,0.8572185,146.07,146.04,6.0562]
[1724924426503,0.8572185,146.07,146.05,1.36918466]
[1724924428320,0.8572185,146.07,146.04,6.0562]
[1724924441934,20.8572185,146.07,146.04,6.0562]
[1724924446323,45.0,146.06,145.97,22.7245]
[1724924446741,45.0,146.06,145.98,0.6829611]
[1724924447049,45.0,146.06,145.97,22.7245]
[1724924448527,45.0,146.06,145.98,0.95339474]
[1724924448930,20.8572185,146.07,145.99,7.39732943]
[1724924449130,0.8572185,146.07,146.0,16.20741965]
[1724924449340,0.8572185,146.07,146.0,15.251]
[1724924449723,0.8572185,146.07,146.0,16.20871146]
[1724924450061,0.8572185,146.07,146.01,1.36957095]
[1724924450449,0.8572185,146.07,146.02,7.58427715]
[1724924450624,0.8572185,146.07,146.02,6.2148]
[1724924457529,0.8572185,146.07,146.02,7.58425212]
[1724924458142,0.8572185,146.07,146.02,6.2148]
[1724924464236,20.8572185,146.07,146.02,6.2148]
[1724924465163,45.0,146.06,146.02,6.2148]
[1724924467762,45.0,146.06,146.0,15.251]
[1724924467939,20.0,146.05,145.98,6.2731]
[1724924468252,45.0,146.04,145.98,6.2731]
[1724924468458,20.0,146.03,145.98,6.2731]
[1724924471362,45.0,146.02,145.98,6.2731]
[1724924473064,20.0,146.03,145.98,6.2731]
[1724924473365,20.0,146.06,145.98,6.2731]
[1724924474359,45.0,146.05,145.98,6.2731]
[1724924474549,20.0,146.04,145.98,6.2731]
[1724924475269,20.0,146.04,145.99,1.36984212]
[1724924475443,0.8572185,146.07,145.99,1.36984212]
[1724924475955,0.8572185,146.07,145.98,6.2731]
[1724924476861,0.8572185,146.07,145.99,15.2068]
[1724924477063,0.8572185,146.07,146.0,6.296]
[1724924478476,50.8572185,146.07,146.0,6.296]
[1724924478762,65.0,146.06,146.0,6.296]
[1724924480751,20.0,146.06,146.0,6.296]
[1724924480948,0.8572185,146.07,146.0,6.296]
[1724924483362,0.8572185,146.07,146.01,1.36955215]
[1724924485350,0.8572185,146.07,145.92,17.31526073]
[1724924485351,0.8572185,146.07,145.95,13.75181397]
[1724924485552,0.8572185,146.07,145.96,65.0]
[1724924485758,0.8572185,146.07,145.98,21.8927]
[1724924486064,0.8572185,146.07,146.01,6.5616]
[1724924488175,0.8572185,146.07,146.02,45.0]
[1724924488472,0.8572185,146.07,146.01,6.5616]
[1724924489880,0.8572185,146.07,146.02,45.0]
[1724924491064,0.8572185,146.07,146.03,22.1408]
[1724924495672,0.8572185,146.07,146.03,6.4476]
[1724924497467,0.8572185,146.07,146.0,6.4569]
[1724924499162,0.8572185,146.07,146.01,0.91913064]
[1724924499465,0.8572185,146.07,146.01,1.36954077]
[1724924501383,0.8572185,146.07,146.0,6.4569]
[1724924502981,15.9097,146.06,145.96,21.8417]
[1724924503185,65.0,146.05,145.96,21.8417]
[1724924504565,65.0,146.05,145.97,1.36988068]
[1724924506493,45.0,146.05,145.97,1.36988068]
[1724924507983,15.9097,146.06,145.97,1.36988068]
[1724924508170,65.0,146.05,145.96,21.8417]
[1724924508877,20.0,146.05,145.96,21.8417]
[1724924509084,15.9097,146.06,145.97,45.0]
[1724924511083,15.9097,146.06,145.96,21.8417]
[1724924511290,15.9097,146.06,145.97,20.0]
[1724924511493,15.9097,146.06,145.96,21.8417]
[1724924511671,20.0,146.05,145.97,45.0]
[1724924512070,20.0,146.05,145.96,21.8417]
[1724924512370,20.0,146.05,145.97,45.0]
[1724924516098,20.0,146.05,145.98,1.36967564]
[1724924516298,20.0,146.05,145.99,1.36967616]
[1724924517297,20.0,146.05,145.98,1.36967616]
[1724924517621,20.0,146.05,145.99,1.36967639]
[1724924519197,15.9097,146.06,145.97,45.0]
[1724924519378,20.0,146.05,145.97,45.0]
[1724924522180,15.9097,146.06,145.97,45.0]
[1724924522386,15.9097,146.06,145.98,20.0]
[1724924522696,15.9097,146.06,145.99,45.51422665]
[1724924523080,15.9097,146.06,145.99,45.0]
[1724924524495,15.9097,146.06,145.98,20.0]
[1724924524669,15.9097,146.06,145.97,20.0]
[1724924524872,15.9097,146.06,145.96,21.8417]
[1724924525073,20.0,146.05,145.96,21.8417]
[1724924525294,20.0,146.05,145.97,1.36981763]
[1724924525495,20.0,146.05,145.96,21.8417]
[1724924526789,20.0,146.05,145.96,6.4347]
[1724924527082,20.0,146.05,145.97,1.36983764]
[1724924527602,20.0,146.05,145.96,6.4347]
[1724924528101,20.0,146.05,145.97,45.0]
[1724924528293,20.0,146.05,145.96,6.4347]
[1724924530602,20.0,146.05,145.97,1.36985243]
[1724924530784,20.0,146.05,145.96,6.4347]
[1724924533895,20.0,146.05,145.97,1.36990618]
[1724924536380,20.0,146.05,145.96,6.4347]
[1724924536705,20.0,146.05,145.93,24.77441772]
[1724924536905,20.0,146.05,145.94,65.0]